Cogmind - Beta 13 @@@ ROGUE MODE // 2024.04.09 @ 09:56:59 Player: MORONI274 Result: Destroyed by S-27 Virus with Autogun Performance ------------- Evolutions (3) 1500 Regions Visited (7) 1400 Robots Destroyed (52) 260 Value Destroyed (1296) 1296 Prototype IDs (0) 0 Alien Tech Used (0) 0 Bonus (35) 35 TOTAL SCORE: 4491 Bonus ------- Follower Combat Kills 35 Cogmind --------- Core Integrity 0/700 Matter 297/300 Energy 98/100 System Corruption 2% Temperature Cool (0) Movement Rolling (95) Ox1 Location -7/Factory Parts ------- > --- POWER (2) -------- (None) > --- PROPULSION (4) --- Wheel Wheel Xenon Bombardment Thruster > --- UTILITY (4) ------ Large Storage Unit Machine Analyzer Signal Interpreter Light Armor Plating > --- WEAPON (3) ------- Mining Claw Mining Claw > --- INVENTORY (15) --- Sensor Array Terrain Scanner Improved Terrain Scanner Core Analyzer Shield Generator Shield Generator Shield Generator Shock Rifle Small Laser Beam Rifle Particle Cannon Plasma Cannon Datajack Datajack Peak State ------------ > --- POWER ------------ Light Ion Engine Light Nuclear Core > --- PROPULSION ------- Light Treads Medium Treads Wheel Wheel > --- UTILITY ---------- Large Storage Unit Machine Analyzer Signal Interpreter Improved Targeting Computer > --- WEAPON ----------- Heavy Assault Rifle High-powered Shotgun Mining Claw > --- INVENTORY -------- Xenon Bombardment Thruster Sensor Array Light Armor Plating Improved Light Armor Plating Shield Generator Shield Generator Shield Generator Small Laser Beam Rifle Minigun Datajack Datajack Mining Claw [Rating: 26] Favorites ----------- Power Improved Ion Engine Engine Improved Ion Engine Power Core Light Nuclear Core Propulsion Light Treads Treads Light Treads Wheel Wheel Flight Unit Xenon Bombardment Thruster Utility Signal Interpreter Device Terrain Scanner Storage Large Storage Unit Processor Signal Interpreter Protection Improved Light Armor Plating Weapon Heavy Assault Rifle Energy Gun Beam Rifle Energy Cannon Particle Cannon Ballistic Gun Heavy Assault Rifle Slashing Weapon Mining Claw Special Melee Weapon Datajack Build | -11 -10 -9 -9 -9 -8 -8 -7 ------- Run | Yrd Mat Mat Min Exi Min Mat Fac Slots Evolved 6 | . . 2 . . . 2 2 Power 1 | . . . . . . . 1 Propulsion 2 | . . . . . . 1 1 Utility 2 | . . 2 . . . . . Weapon 1 | . . . . . . 1 . Parts Attached 54 | 6 3 16 . . 5 4 20 Power 6 | 1 . 3 . . . . 2 Engine 5 | 1 . 3 . . . . 1 Core 1 | . . . . . . . 1 Reactor . | . . . . . . . . Propulsion 16 | 2 . 4 . . . 1 9 Treads 10 | 2 . 4 . . . 1 3 Leg . | . . . . . . . . Wheel 5 | . . . . . . . 5 Hover . | . . . . . . . . Flight 1 | . . . . . . . 1 Utility 9 | 1 1 5 . . . . 2 Device 2 | . 1 1 . . . . . Storage 2 | 1 . 1 . . . . . Processor 3 | . . 3 . . . . . Hackware . | . . . . . . . . Protection 2 | . . . . . . . 2 Artifact . | . . . . . . . . Weapon 23 | 2 2 4 . . 5 3 7 Energy Gun 8 | 2 1 3 . . . . 2 Energy Cannon 1 | . . . . . . . 1 Ballistic Gun 10 | . 1 1 . . 4 2 2 Ballistic Cannon . | . . . . . . . . Launcher . | . . . . . . . . Special Weapon . | . . . . . . . . Impact Weapon . | . . . . . . . . Slashing Weapon 2 | . . . . . . 1 1 Piercing Weapon . | . . . . . . . . Special Melee Weapon 2 | . . . . . 1 . 1 Unidentified Prototypes . | . . . . . . . . Parts Lost 27 | . . 8 . . 1 2 16 Power 5 | . . 2 . . . . 3 Propulsion 10 | . . 3 . . . 1 6 Utility 3 | . . 1 . . . . 2 Weapon 9 | . . 2 . . 1 1 5 Highest Loss Streak 9 | . . 3 . . 1 1 9 To Critical Strikes 1 | . . . . . . . 1 Average Slot Usage (%) 89 | . 90 93 100 100 100 90 75 Engine 8 | . 14 9 11 11 11 9 2 Treads 17 | . 28 17 22 22 22 19 9 Wheel 1 | . . . . . . . 4 Flight 1 | . . . . . . . 3 Device 2 | . 5 8 . . . . . Storage 9 | . 14 11 11 11 11 9 7 Processor 22 | . . 23 33 33 33 27 18 Protection 1 | . . . . . . . 3 Energy Gun 7 | . 17 12 11 11 2 . . Ballistic Gun 11 | . 10 9 11 11 16 23 8 Slashing Weapon 3 | . . . . . . 2 11 Naked Turns . | . . . . . . . . Heaviest Build 36 | 10 12 33 33 33 33 36 36 Greatest Support 68 | 40 40 40 40 40 40 60 68 Greatest Overweight (x) 7 | 2 . 1 . . . . 7 Average Overweight (x) . | . . . . . . . . Largest Inventory Capacity 15 | 8 8 15 15 15 15 15 15 Average Capacity 13 | 7 8 13 15 15 15 15 15 Most Carried 15 | 5 8 15 15 15 15 15 15 Average Carried 13 | 3 5 12 14 15 14 14 13 Final Capacity 15 | 8 8 15 15 15 15 15 15 Final Carried 15 | 4 8 13 15 15 15 15 14 Class Distribution -------------------- 50% | Scavenger-Mutant 44% | Mutant 5% | Scavenger-Gunner Dominant Class ---------------- Mutant | -10/Materials Mutant | -9/Materials Scavenger-Mutant | -9/Mines Scavenger-Mutant | -9/Exiles Scavenger-Mutant | -8/Mines Scavenger-Gunner | -8/Materials Mutant | -7/Factory Resources | -11 -10 -9 -9 -9 -8 -8 -7 ----------- Run | Yrd Mat Mat Min Exi Min Mat Fac Matter Collected 1295 | 179 125 241 96 . 131 75 448 Remotely . | . . . . . . . . Salvage Created 1684 | . 124 681 196 . 151 173 359 Parts 108 | . 6 41 17 . 11 11 22 Haulers Intercepted . | . . . . . . . . Recyclers Shooed 2 | . . 2 . . . . . Parts Field Recycled . | . . . . . . . . Retrieved Matter . | . . . . . . . . Parts Self-Destructed . | . . . . . . . . Prevented . | . . . . . . . . Kills | -11 -10 -9 -9 -9 -8 -8 -7 ------- Run | Yrd Mat Mat Min Exi Min Mat Fac Combat Hostiles Destroyed 40 | . 2 13 8 . 6 6 5 Melee 1 | . . . . . . . 1 Guns 39 | . 2 13 8 . 6 6 4 Classes Destroyed 12 | . 2 5 1 . . . 4 Worker 4 | . . 1 1 . . . 2 Builder 1 | . . . . . . . 1 Recycler 3 | . . 2 . . . . 1 Operator 1 | . . 1 . . . . . Watcher 3 | . 1 1 . . . 1 . Swarmer 17 | . . 3 6 . 4 4 . Grunt 11 | . 2 6 1 . 2 . . Brawler 1 | . . . 1 . . . . Sentry 7 | . . 4 . . . 2 1 Specialist 1 | . . . . . . . 1 Hunter 1 | . . . . . . . 1 Programmer 2 | . . . . . . . 2 Best Kill Streak 6 | . 2 5 5 . 6 5 2 Combat Bots Only 6 | . 2 5 4 . 6 4 1 Max Kills in Single Turn 2 | . 1 1 2 . 1 1 1 Gunslinging . | . . . . . . . . Exploded . | . . . . . . . . Melee 1 | . . . . . . . 1 Uniques/NPCs Destroyed . | . . . . . . . . Combat | -11 -10 -9 -9 -9 -8 -8 -7 -------- Run | Yrd Mat Mat Min Exi Min Mat Fac Hostile Shots Fired 398 | . 31 81 48 . 33 33 172 Missed 94 | . 10 17 13 . 15 4 35 Damage Taken 3969 | . 279 755 284 . 212 329 2110 Core 982 | . 34 156 61 . 7 22 702 Absorbed by Shields . | . . . . . . . . Core Remaining (%) 81 | 100 86 . . . 44 96 . Volleys Fired 177 | . 18 67 21 . 16 14 41 Largest 3 | . 2 2 2 . 2 3 2 Hottest 115 | . 70 115 79 . 79 71 68 Shots Fired 335 | . 36 130 42 1 31 35 60 Gun 333 | . 36 130 42 1 31 35 58 Cannon 2 | . . . . . . . 2 Launcher . | . . . . . . . . Special . | . . . . . . . . Kinetic 213 | . 18 61 21 1 22 35 55 Thermal 119 | . 18 69 21 . 9 . 2 Explosive . | . . . . . . . . Electromagnetic 3 | . . . . . . . 3 Robot Hit Streak 13 | . 3 13 3 . 12 9 11 Robot Miss Streak 7 | . 7 5 5 . 2 4 3 Penetration Max 1 | . . . . . . . 1 Secondary Targets 6 | . . 1 1 . 2 2 . Max Gunslinging Chain 1 | . . 1 1 . 1 1 . Shots Hit Robots 232 | . 15 77 16 . 29 26 69 Core Hits 89 | . 8 32 10 . 11 11 17 Critical Kills . | . . . . . . . . Critical Parts Destroyed 1 | . . . . . . . 1 Critical Strikes 9 | . 1 4 2 . 1 . 1 Burn 8 | . 1 4 2 . 1 . . Destroy 1 | . . . . . . . 1 Melee Attacks 59 | . . . . . 4 . 55 Impact . | . . . . . . . . Slashing 55 | . . . . . . . 55 Piercing . | . . . . . . . . Sneak Attacks 7 | . . . . . 4 . 3 Combat Hostiles . | . . . . . . . . Follow-up Attacks 4 | . . . . . . . 4 Damage Inflicted 3767 | . 183 1095 286 . 302 365 1536 Guns 2974 | . 183 1095 282 . 302 365 747 Cannons 21 | . . . . . . . 21 Explosions . | . . . . . . . . Melee 768 | . . . . . . . 768 Ramming 4 | . . . 4 . . . . Kinetic 1887 | . 70 476 79 . 186 365 711 Thermal 1072 | . 113 619 203 . 116 . 21 Explosive . | . . . . . . . . Electromagnetic 36 | . . . . . . . 36 Impact . | . . . . . . . . Slashing 768 | . . . . . . . 768 Piercing . | . . . . . . . . Highest Corruption 2 | . . 2 2 2 2 . 2 Average Corruption 1 | . . 2 2 2 2 . 1 Corruption Purged . | . . . . . . . . Corruption Blocked . | . . . . . . . . Effects 44 | . . 12 3 16 3 . 10 Message Errors 13 | . . 5 . 3 . . 5 Matter Fused 13 | . . 1 2 6 1 . 3 Heat Flow Errors 5 | . . 2 1 1 . . 1 Energy Discharges 3 | . . 2 . 1 . . . Parts Rejected 1 | . . 1 . . . . . Data Loss (minor) 4 | . . 1 . 2 . . 1 Data Loss (major) 1 | . . . . . 1 . . Misfires 2 | . . . . 1 1 . . Alerts 2 | . . . . 2 . . . Overload Shots . | . . . . . . . . Overflow Damage 91 | . . . . . . . 91 Projectiles 17 | . . . . . . . 17 Explosions . | . . . . . . . . Melee 74 | . . . . . . . 74 Knockbacks . | . . . . . . . . Impact . | . . . . . . . . Kinetic . | . . . . . . . . Secondary . | . . . . . . . . Self-Inflicted Damage . | . . . . . . . . Shots . | . . . . . . . . Rammed 1 | . . . 1 . . . . Targets Rammed 1 | . . . 1 . . . . Kicked . | . . . . . . . . Crushed . | . . . . . . . . Highest Temperature 330 | . 330 275 264 271 150 6 249 Average Temperature 82 | . 137 72 63 144 85 4 95 Received Heat Transfer 957 | . 177 294 24 . 72 72 318 Effects 1 | . . . 1 . . . . Energy Bleed 1 | . . . 1 . . . . Siege Activations . | . . . . . . . . Robots Corrupted . | . . . . . . . . Combat Hostiles . | . . . . . . . . Parts Fried . | . . . . . . . . Impact Corruptions . | . . . . . . . . Robots Melted . | . . . . . . . . Combat Hostiles . | . . . . . . . . Parts Melted 10 | . 1 3 2 . 1 . 3 Heat Transferred 3367 | . 407 1887 666 . 370 . 37 Parts Sabotaged . | . . . . . . . . Parts Stolen . | . . . . . . . . Parts Stripped . | . . . . . . . . Power Chain Reactions . | . . . . . . . . Alert | -11 -10 -9 -9 -9 -8 -8 -7 ------- Run | Yrd Mat Mat Min Exi Min Mat Fac Peak Influence 316 | . 65 312 316 . 123 216 50 Initial 121 | . . 2 121 . . 47 7 Average 60 | . 19 71 287 . 90 92 10 Maximum Alert Level 1 | . . 1 1 . . 1 . Low Security (%) 88 | 100 100 89 3 . 100 91 100 Level 1 11 | . . 10 96 . . 8 . Level 2 . | . . . . . . . . Level 3 . | . . . . . . . . Level 4 . | . . . . . . . . Level 5 . | . . . . . . . . High Security . | . . . . . . . . Max Security . | . . . . . . . . Squads Dispatched 6 | . . 1 . . . . 5 Investigation 1 | . . . . . . . 1 Extermination 3 | . . . . . . . 3 Reinforcement 2 | . . 1 . . . . 1 Assault . | . . . . . . . . Garrison . | . . . . . . . . Intercept . | . . . . . . . . Searches Triggered . | . . . . . . . . Construction Impeded . | . . . . . . . . Haulers Reinforced . | . . . . . . . . Active Scanning Responses . | . . . . . . . . Cargo Convoy Interrupts . | . . . . . . . . Stealth | -11 -10 -9 -9 -9 -8 -8 -7 --------- Run | Yrd Mat Mat Min Exi Min Mat Fac Distress Signals 2 | . . 1 . . . 1 . Communications Jammed . | . . . . . . . . Distress Signals . | . . . . . . . . Times Spotted 62 | . 6 26 8 . 7 7 8 Peak Tracking Total 5 | . 2 5 3 . 4 4 5 Tactical Retreats 3 | . . 1 . . . . 2 Traps | -11 -10 -9 -9 -9 -8 -8 -7 ------- Run | Yrd Mat Mat Min Exi Min Mat Fac Traps Triggered 1 | . . 1 . . . . . Indirectly . | . . . . . . . . Trap Hack Attempts . | . . . . . . . . Triggered . | . . . . . . . . Disarmed . | . . . . . . . . Reprogrammed . | . . . . . . . . Reused . | . . . . . . . . Traps Extracted . | . . . . . . . . Installed . | . . . . . . . . Triggered . | . . . . . . . . Machines | -11 -10 -9 -9 -9 -8 -8 -7 ---------- Run | Yrd Mat Mat Min Exi Min Mat Fac Machines Disabled . | . . . . . . . . Max in Single Turn . | . . . . . . . . Machines Repaired . | . . . . . . . . Machines Dismantled . | . . . . . . . . Machines Sabotaged . | . . . . . . . . Overloaded Fab Kills . | . . . . . . . . Hacking | -11 -10 -9 -9 -9 -8 -8 -7 --------- Run | Yrd Mat Mat Min Exi Min Mat Fac Machines Accessed 9 | . 3 1 . 1 . 3 1 Terminals 3 | . 1 1 . . . 1 . Fabricators 1 | . . . . . . . 1 Repair Stations . | . . . . . . . . Recycling Units 3 | . 2 . . . . 1 . Scanalyzers 1 | . . . . . . 1 . Garrison Access . | . . . . . . . . Total Hacks 19 | . 6 3 . 3 . 4 3 Successful 18 | . 6 2 . 3 . 4 3 Failed 1 | . . 1 . . . . . Catastrophic . | . . . . . . . . Database Lockouts . | . . . . . . . . Manual 1 | . . . . 1 . . . Terminals 6 | . 2 3 . . . 1 . Fabricators 3 | . . . . . . . 3 Repair Stations . | . . . . . . . . Recycling Units 5 | . 4 . . . . 1 . Scanalyzers 2 | . . . . . . 2 . Garrison Access . | . . . . . . . . Terminal Hacks 8 | . 2 2 . 3 . 1 . Record 7 | . 2 2 . 3 . . . Alert Level 1 | . . . . . . 1 . Fabricator Hacks 3 | . . . . . . . 3 Network Status 1 | . . . . . . . 1 Load Schematic 1 | . . . . . . . 1 Build 1 | . . . . . . . 1 Repair Station Hacks . | . . . . . . . . Recycling Unit Hacks 5 | . 4 . . . . 1 . Process 1 | . 1 . . . . . . Report Inventory 3 | . 2 . . . . 1 . Retrieve Matter 1 | . 1 . . . . . . Scanalyzer 2 | . . . . . . 2 . Insert Component 1 | . . . . . . 1 . Analyze 1 | . . . . . . 1 . Garrison Access Hacks . | . . . . . . . . Unauthorized Hacks . | . . . . . . . . Terminals . | . . . . . . . . Fabricators . | . . . . . . . . Repair Stations . | . . . . . . . . Recycling Units . | . . . . . . . . Scanalyzers . | . . . . . . . . Garrison Access . | . . . . . . . . Data Cores Recovered . | . . . . . . . . Used . | . . . . . . . . Hacking Detections 4 | . . 1 . . . 2 1 Full Trace Events 1 | . . . . . . . 1 Feedback Events . | . . . . . . . . Feedback Blocked . | . . . . . . . . Robot Schematics Acquired . | . . . . . . . . Robots Built . | . . . . . . . . Authchips . | . . . . . . . . Time . | . . . . . . . . Total Robot Build Rating . | . . . . . . . . Part Schematics Acquired 1 | . . . . . . 1 . Parts Built 1 | . . . . . . . 1 Authchips . | . . . . . . . . Time 51 | . . . . . . . 51 Total Part Build Rating 1 | . . . . . . . 1 Parts Repaired . | . . . . . . . . Time . | . . . . . . . . Parts Recycled . | . . . . . . . . Recycled Matter 4 | . 4 . . . . . . Retrieved Matter 4 | . 4 . . . . . . Retrieved Components . | . . . . . . . . Parts Scanalyzed 1 | . . . . . . 1 . Part Schematics Acquired 1 | . . . . . . 1 . Parts Damaged . | . . . . . . . . Bothacking | -11 -10 -9 -9 -9 -8 -8 -7 ------------ Run | Yrd Mat Mat Min Exi Min Mat Fac Used RIF Installer . | . . . . . . . . Robots Hacked 1 | . . . . . 1 . . Non-combat 1 | . . . . . 1 . . Combat . | . . . . . . . . Robot Hacks Applied 3 | . . . . . 3 . . parse_system 1 | . . . . . 1 . . no_distress 2 | . . . . . 2 . . Relay Couplers Released . | . . . . . . . . Fabnet Peak Effective % . | . . . . . . . . Robots Rewired 3 | . . . . 3 . . . Allies Hacked . | . . . . . . . . Hacks Repelled . | . . . . . . . . Allies | -11 -10 -9 -9 -9 -8 -8 -7 -------- Run | Yrd Mat Mat Min Exi Min Mat Fac Total Allies 5 | . . . 2 3 . . . Largest Group 3 | . . . 2 3 3 . . Highest-Rated Group 45 | . . . 45 45 37 . . Highest-Rated Ally 31 | . . . 31 31 21 . . Total Orders . | . . . . . . . . Ally Attacks 10 | . . . . . 10 . . Total Damage 73 | . . . . . 73 . . Kills 1 | . . . . . 1 . . Allies Corrupted . | . . . . . . . . Allies Melted . | . . . . . . . . Intel | -11 -10 -9 -9 -9 -8 -8 -7 ------- Run | Yrd Mat Mat Min Exi Min Mat Fac Robot Analysis Total . | . . . . . . . . Derelict Logs Recovered 1 | . . . 1 . . . . Drone Launches . | . . . . . . . . Drone Recoveries . | . . . . . . . . Exploration | -11 -10 -9 -9 -9 -8 -8 -7 ------------- Run | Yrd Mat Mat Min Exi Min Mat Fac Turns Passed 6176 | 123 613 1155 397 1311 248 498 1831 Spaces Moved 3084 | 77 347 516 207 794 120 278 745 Core 22 | 18 . . . . . . 4 Treads 2902 | 59 347 516 207 794 120 278 581 Legs . | . . . . . . . . Wheels 158 | . . . . . . . 158 Hover . | . . . . . . . . Flight 2 | . . . . . . . 2 Fastest Speed 50 | 50 160 160 160 160 160 160 95 Average Speed 164 | 144 160 179 160 160 160 160 167 Slowest Speed 400 | 160 160 240 160 160 160 160 400 Overloaded Moves . | . . . . . . . . Propulsion Burnouts . | . . . . . . . . Robots Hopped . | . . . . . . . . Cave-ins Triggered . | . . . . . . . . Exploration Rate (%) 34 | 4 39 33 56 91 23 20 6 Regions Visited 7 Branch Regions 3 Pre-discovered Areas 1 | . . . 1 . . . . Known Exits Taken 5 | . . 1 1 1 1 1 . Unknown Exits Taken 2 | 1 1 . . . . . . Scrap Searched 1 | . . . 1 . . . . Spaces Dug . | . . . . . . . . Terrain Destroyed . | . . . . . . . . Melee . | . . . . . . . . Projectile . | . . . . . . . . AOE . | . . . . . . . . Terrain Rammed . | . . . . . . . . Walls Destroyed . | . . . . . . . . Machines Disabled . | . . . . . . . . Actions | -11 -10 -9 -9 -9 -8 -8 -7 --------- Run | Yrd Mat Mat Min Exi Min Mat Fac Total 3762 | 87 372 619 232 835 145 304 1168 Wait 301 | . . . . . . . 301 Move 3077 | 76 346 515 206 793 119 277 745 Hop . | . . . . . . . . Pick Up 46 | 5 4 17 3 . 1 6 10 Fast Attach 11 | 5 1 2 . . . . 3 Attach 29 | 1 1 10 . . 1 3 13 Detach 3 | . 1 1 . . . . 1 Swap 14 | . 1 4 . . 4 1 4 Drop 8 | . . 3 1 . . 3 1 Fire 177 | . 18 67 21 . 16 14 41 Melee 53 | . . . . . 4 . 49 Ram . | . . . . . . . . Kick . | . . . . . . . . Crush 1 | . . . 1 . . . . Escape Stasis . | . . . . . . . . Rewire 42 | . . . . 42 . . . Trap . | . . . . . . . . Miscellaneous . | . . . . . . . . Route ------- -11/Scrapyard -10/Materials -9/Materials -9/Mines -9/Exiles (discovered 2 exits: *Min x2) -8/Mines -8/Materials -7/Factory History --------- Turn | Location | Event 14 | -11/Scrapyard | Discovered new exit (range 16) 124 | -11/Scrapyard | Entered Materials 326 | -10/Materials | Build established: Mutant 573 | -10/Materials | Discovered new exit (range 15) 737 | -10/Materials | Entered another Materials area 737 | -9/Materials | Evolved 2 slots: Utility x2 1637 | -9/Materials | Discovered new exit (range 12) 1763 | -9/Materials | Lost 3 parts (1p1n1w) 1833 | -9/Materials | Identified exit to Mines 1892 | -9/Materials | Entered Mines 1921 | -9/Mines | Met a Derelict bent on vengeance 1943 | -9/Mines | Core integrity fell below 50% 2024 | -9/Mines | Build established: Scavenger-Mutant 2212 | -9/Mines | Learned location of Storage (-7) 2280 | -9/Mines | Deemed a non-threat by the Exiles lab entrance 2280 | -9/Mines | Discovered new exit (range 5) 2286 | -9/Mines | Identified exit to Exiles 2289 | -9/Mines | Entered Exiles 2289 | -9/Exiles | Found Exiles lab destroyed 2289 | -9/Exiles | Accompanied by 2 allies 2315 | -9/Exiles | Discovered new exit (range 15) 2319 | -9/Exiles | Led the pair of lost Derelicts to a safe place 3160 | -9/Exiles | Discovered new exit (range 10) 3171 | -9/Exiles | Identified exit to Mines 3600 | -9/Exiles | Entered Mines 3600 | -8/Mines | Accompanied by 3 allies 3682 | -8/Mines | Lost 3 allies 3818 | -8/Mines | Discovered new exit (range 8) 3832 | -8/Mines | Identified exit to Materials 3848 | -8/Mines | Entered Materials 3848 | -8/Materials | Evolved 2 slots: Propulsion x1, Weapon x1 4181 | -8/Materials | Build established: Scavenger-Gunner 4291 | -8/Materials | Discovered new exit (range 12) 4307 | -8/Materials | Identified exit to Factory 4346 | -8/Materials | Entered Factory 4346 | -7/Factory | Evolved 2 slots: Power x1, Propulsion x1 4486 | -7/Factory | Build established: Scavenger-Mutant 4715 | -7/Factory | Fabricated Datajack (x1) 5127 | -7/Factory | Core integrity fell below 50% 5154 | -7/Factory | Core integrity fell below 20% 5169 | -7/Factory | Lost 9 parts (1p4n1u3w) 5298 | -7/Factory | Build established: Mutant 6001 | -7/Factory | Lost 3 parts (1n1u1w) 6177 | -7/Factory | Destroyed by S-27 Virus with Autogun Last Messages --------------- 06000_ Acquired 26 matter. 06002_ Acquired Wheel. 06020_ Identified Shock Rifle. 06031_ Destroyed Wheel. 06046_ System corrupted: Matter fused (-7). 06070_ System corrupted: Matter fused (-10). 06089_ R-06 Scavenger collects Terrain Scan Processor. 06090_ Sneak attack on R-06 Scavenger. 06090_ Destroyed Com. Wheel. 06090_ R-06 Scavenger destroyed. 06092_ K-01 Serf collects debris. 06094_ Acquired 53 matter. 06097_ Sneak attack on K-01 Serf. 06097_ Destroyed Lgt. Ion Engine. 06097_ K-01 Serf destroyed. 06098_ Extracted 68 matter. 06100_ Acquired 27 matter. 06107_ Sneak attack on U-05 Engineer. 06107_ Destroyed Lgt. Ion Engine. 06174_ Acquired 4 matter. Map ----- +----------------------------------------------------+ | ?????????????????????????????????????????????????? | | ?????????????????????????????????????????????????? | | ?????????????????????????????????????????????????? | | ?????????????????????????????????????????????????? | | ?????????????????????????????????????????????????? | | ???????????????????????????H?????????????????????? | | ??????????????????????????? ???????????????????? | | ????????????????????????? ???????????????????? | | ???????????????????????? ???????????????????? | | ???????????????????????? ??????????????????? | | ??????##############????#s #????? ????"""?? | | ??????# #????# #???" ??"R"?? | | ??????# #????# #???" "?"?? | | ??????# #????# #???" ?? | | ??????# #????# #???? ! # | | ??????# #????# #???"" !# | | ??????# #????# ##??"" # | | ??????# #????# T#??"" # | | ??????# #????# #???? = # | | ??????# ! #????# #?????############## | | ??????# #????# #?????## | | ###???# #????# #????### | | #???# #????# #????# # | | ###########+########### ######## | | # | | @ # | | + | | ! # | | ! ! # | | #####+##### ###+#############+#### | | #??# # # ## | | #??# # # "" ## | | #??# # """ """ """ # F" ############## | | #??# # """ """ """ # " #????????????? | | #??# # """ """ """ # "" #???"""??????? | | #??# + # #???"""??????? | | ####+#+################# """#???"""??????? | | # #?????????# """#????????????? | | ######## #?????????# """#????????????? | | ???????# """ """ #?????????# ""#????????????? | | ???????# """ """ #?????????# ""#????????????? | | ???????# """ """ #?????????# #????????????? | | ???????# #?????????#######????????????? | | ???????# """ """ #????????????????????????????? | | ???????# """ """ #???????????????????"""??????? | | ???????# """ """ #????????????????????R"??????? | | ???????# #???????????????????"""??????? | | ???????# #????????????????????????????? | | ???????# #????????????????????????????? | | ???????##############????????????????????????????? | +----------------------------------------------------+ Best States ------------- Heat Dissipation 34 Energy Generation 19 Energy Capacity 265 Matter Stores 300 Matter Capacity 300 Sight Range 16 Terrain Scan Range 14 Terrain Scan Density 10 Armor Coverage 150 Evasion (%) 41 Targeting Accuracy 6 Recoil Reduction 3 Item Schematics ----------------- Datajack | -8/Materials | Scanalyzed Robot Schematics ------------------ None Fabricated ------------ Datajack | x1 | -7/Factory Alien Tech Used ----------------- None Achievements -------------- A New Friend Please Form A Line Challenges ------------ None Game ------ Seed RefineryCoreNetwork Manual? 0 Play Time 00:44:12 Cumulative 9.4 hours Start 2024.04.05 @ 18:52:18 End 2024.04.09 @ 09:56:59 Sessions 7 Manual Loads 0 Difficulty Rogue Special Mode None Game No. 15 Rogue 15 Adventurer 0 Explorer 0 Win Type - Total 0 Types 0/0/0/0/0/0/0/0/0 Lore% 11 Gallery% 15 Achievement% 15 Wizard Run 0 Options --------- Layout 2 ASCII 0 Keyboard 0 Movement Arrows Keybinds 0 Fullscreen 0 Font 14/SmallcapsGlow Map View 59x54 Zoom Use 0% Tactical HUD 1 Map Filters NONE Filters NONE Steam SD RUN: 1bf9bdbe-529f-44a4-8af4-0b3e786dc201